[Event "Vastgota Open 2023"]
[Site "Skara stadshotell, Jarnvagsgatan 5, Skara, Sweden"]
[Date "2023.02.19"]
[Round "9.3"]
[White "Kockum, Anton Frisk"]
[Black "Miezis, Normunds"]
[Result "0-1"]
[TimeControl "15 minutes + 5 seconds per move from move one (Round 1 - 2) / 30 minutes + 10 seconds per move from move one (Round 3 - 9)"]
[WhiteTitle "FM"]
[BlackTitle "GM"]
[WhiteFideId "1709143"]
[BlackFideId "11600136"]
[WhiteElo "2367"]
[BlackElo "2502"]

1. d4 {[%clk 00:30:18]} {[%emt 00:00:02]} Nf6 {[%clk 00:30:14]} {[%emt
00:00:06]} 2. Nf3 {[%clk 00:30:25]} {[%emt 00:00:03]} e6 {[%clk 00:30:18]}
{[%emt 00:00:06]} 3. c4 {[%clk 00:30:33]} {[%emt 00:00:03]} Bb4+ {[%clk
00:30:18]} {[%emt 00:00:09]} 4. Bd2 {[%clk 00:30:40]} {[%emt 00:00:03]} a5
{[%clk 00:30:12]} {[%emt 00:00:16]} 5. Nc3 {[%clk 00:30:48]} {[%emt 00:00:02]}
O-O {[%clk 00:29:53]} {[%emt 00:00:29]} 6. Bg5 {[%clk 00:28:01]} {[%emt
00:02:58]} d5 {[%clk 00:29:13]} {[%emt 00:00:50]} 7. e3 {[%clk 00:28:02]}
{[%emt 00:00:09]} b6 {[%clk 00:28:05]} {[%emt 00:01:18]} 8. cxd5 {[%clk
00:26:28]} {[%emt 00:01:45]} exd5 {[%clk 00:28:03]} {[%emt 00:00:11]} 9. Bd3
{[%clk 00:26:22]} {[%emt 00:00:16]} Bb7 {[%clk 00:27:53]} {[%emt 00:00:20]} 10.
Ne5 {[%clk 00:24:39]} {[%emt 00:01:53]} h6 {[%clk 00:27:02]} {[%emt 00:01:00]}
11. Bh4 {[%clk 00:24:18]} {[%emt 00:00:32]} Be7 {[%clk 00:26:33]} {[%emt
00:00:39]} 12. O-O {[%clk 00:24:04]} {[%emt 00:00:24]} Nfd7 {[%clk 00:22:30]}
{[%emt 00:04:13]} 13. Bg3 {[%clk 00:22:53]} {[%emt 00:01:20]} Nxe5 {[%clk
00:20:39]} {[%emt 00:02:01]} 14. Bxe5 {[%clk 00:23:01]} {[%emt 00:00:02]} Nd7
{[%clk 00:19:26]} {[%emt 00:01:23]} 15. Bg3 {[%clk 00:23:08]} {[%emt 00:00:03]}
Nf6 {[%clk 00:18:47]} {[%emt 00:00:50]} 16. Rc1 {[%clk 00:23:15]} {[%emt
00:00:02]} c5 {[%clk 00:18:35]} {[%emt 00:00:23]} 17. Bb1 {[%clk 00:22:09]}
{[%emt 00:01:16]} Ne4 {[%clk 00:18:14]} {[%emt 00:00:31]} 18. Nxe4 {[%clk
00:19:31]} {[%emt 00:02:48]} dxe4 {[%clk 00:18:14]} {[%emt 00:00:09]} 19. dxc5
{[%clk 00:18:36]} {[%emt 00:01:06]} Bxc5 {[%clk 00:17:44]} {[%emt 00:00:40]} 20.
Qa4 {[%clk 00:17:14]} {[%emt 00:01:32]} Re8 {[%clk 00:16:33]} {[%emt 00:01:20]}
21. a3 {[%clk 00:11:42]} {[%emt 00:05:43]} Qf6 {[%clk 00:14:55]} {[%emt
00:01:47]} 22. Qb3 {[%clk 00:11:49]} {[%emt 00:00:03]} a4 {[%clk 00:14:20]}
{[%emt 00:00:45]} 23. Qc3 {[%clk 00:11:46]} {[%emt 00:00:13]} Qxc3 {[%clk
00:12:25]} {[%emt 00:02:05]} 24. Rxc3 {[%clk 00:11:55]} {[%emt 00:00:02]} Red8
{[%clk 00:10:47]} {[%emt 00:01:47]} 25. Rfc1 {[%clk 00:11:00]} {[%emt
00:01:05]} Rd2 {[%clk 00:09:48]} {[%emt 00:01:09]} 26. R3c2 {[%clk 00:10:48]}
{[%emt 00:00:22]} Rad8 {[%clk 00:09:33]} {[%emt 00:00:25]} 27. Rxd2 {[%clk
00:10:56]} {[%emt 00:00:02]} Rxd2 {[%clk 00:09:39]} {[%emt 00:00:04]} 28. Be5
{[%clk 00:11:04]} {[%emt 00:00:02]} f5 {[%clk 00:08:19]} {[%emt 00:01:30]} 29.
Ba2+ {[%clk 00:07:42]} {[%emt 00:03:33]} Kf8 {[%clk 00:07:55]} {[%emt
00:00:34]} 30. Be6 {[%clk 00:07:25]} {[%emt 00:00:27]} g6 {[%clk 00:07:43]}
{[%emt 00:00:22]} 31. g4 {[%clk 00:04:30]} {[%emt 00:03:05]} fxg4 {[%clk
00:05:46]} {[%emt 00:02:07]} 32. Bc3 {[%clk 00:04:19]} {[%emt 00:00:21]} Rd3
{[%clk 00:04:24]} {[%emt 00:01:31]} 33. Bxg4 {[%clk 00:02:46]} {[%emt
00:01:44]} Rxe3 {[%clk 00:04:23]} {[%emt 00:00:10]} 34. Bd2 {[%clk 00:02:55]}
{[%emt 00:00:02]} Rb3 {[%clk 00:04:00]} {[%emt 00:00:32]} 35. Bxh6+ {[%clk
00:03:04]} {[%emt 00:00:02]} Kf7 {[%clk 00:04:05]} {[%emt 00:00:05]} 36. Rc2
{[%clk 00:03:05]} {[%emt 00:00:09]} Kf6 {[%clk 00:03:52]} {[%emt 00:00:22]} 37.
Bc1 {[%clk 00:02:04]} {[%emt 00:01:11]} Ba6 {[%clk 00:02:36]} {[%emt 00:01:26]}
38. Bd2 {[%clk 00:00:38]} {[%emt 00:01:37]} Bd3 {[%clk 00:01:27]} {[%emt
00:01:19]} 39. Rc1 {[%clk 00:00:26]} {[%emt 00:00:22]} Kf7 {[%clk 00:01:02]}
{[%emt 00:00:35]} 40. Be3 {[%clk 00:00:13]} {[%emt 00:00:23]} Bxe3 {[%clk
00:00:56]} {[%emt 00:00:15]} 41. fxe3 {[%clk 00:00:22]} {[%emt 00:00:01]} Rxb2
{[%clk 00:01:03]} {[%emt 00:00:04]} 42. Bd7 {[%clk 00:00:13]} {[%emt 00:00:19]}
b5 {[%clk 00:01:07]} {[%emt 00:00:07]} 43. Rc7 {[%clk 00:00:21]} Kf6 {[%clk
00:01:07]} {[%emt 00:00:09]} 44. Be8 {[%clk 00:00:27]} {[%emt 00:00:04]} g5
{[%clk 00:01:07]} {[%emt 00:00:10]} 45. Rc5 {[%clk 00:00:14]} {[%emt 00:00:24]}
b4 {[%clk 00:01:08]} {[%emt 00:00:09]} 0-1

[Event "Vastgota Open 2023"]
[Site "Skara stadshotell, Jarnvagsgatan 5, Skara, Sweden"]
[Date "2023.02.19"]
[Round "9.4"]
[White "Palchuk, Andrii"]
[Black "Golubka, Petro"]
[Result "0-1"]
[TimeControl "15 minutes + 5 seconds per move from move one (Round 1 - 2) / 30 minutes + 10 seconds per move from move one (Round 3 - 9)"]
[WhiteTitle "FM"]
[BlackTitle "GM"]
[WhiteFideId "14176688"]
[BlackFideId "14114224"]
[WhiteElo "2238"]
[BlackElo "2407"]

1. d4 {[%clk 00:30:18]} {[%emt 00:17:52]} d5 {[%clk 00:25:23]} {[%emt
00:04:58]} 2. c4 {[%clk 00:30:26]} {[%emt 00:00:03]} c6 {[%clk 00:25:31]}
{[%emt 00:00:02]} 3. Nf3 {[%clk 00:30:32]} {[%emt 00:00:03]} e6 {[%clk
00:25:38]} {[%emt 00:00:03]} 4. Nbd2 {[%clk 00:30:15]} {[%emt 00:00:27]} f5
{[%clk 00:25:44]} {[%emt 00:00:04]} 5. g3 {[%clk 00:30:19]} {[%emt 00:00:06]}
Nd7 {[%clk 00:25:46]} {[%emt 00:00:09]} 6. Bg2 {[%clk 00:30:13]} {[%emt
00:00:14]} Bd6 {[%clk 00:25:51]} {[%emt 00:00:06]} 7. O-O {[%clk 00:29:57]}
{[%emt 00:00:26]} Ngf6 {[%clk 00:25:38]} {[%emt 00:00:23]} 8. b3 {[%clk
00:28:54]} {[%emt 00:01:13]} O-O {[%clk 00:25:31]} {[%emt 00:00:17]} 9. Bb2
{[%clk 00:28:34]} {[%emt 00:00:29]} Qe7 {[%clk 00:25:23]} {[%emt 00:00:19]} 10.
Ne5 {[%clk 00:27:50]} {[%emt 00:00:53]} a5 {[%clk 00:25:10]} {[%emt 00:00:24]}
11. a3 {[%clk 00:27:04]} {[%emt 00:00:57]} Ne4 {[%clk 00:24:51]} {[%emt
00:00:29]} 12. Ndf3 {[%clk 00:26:29]} {[%emt 00:00:44]} Nxe5 {[%clk 00:24:24]}
{[%emt 00:00:37]} 13. Nxe5 {[%clk 00:26:26]} {[%emt 00:00:13]} Bd7 {[%clk
00:24:25]} {[%emt 00:00:10]} 14. e3 {[%clk 00:24:14]} {[%emt 00:02:21]} Be8
{[%clk 00:24:10]} {[%emt 00:00:25]} 15. Qe2 {[%clk 00:24:06]} {[%emt 00:00:18]}
h5 {[%clk 00:23:46]} {[%emt 00:00:34]} 16. f3 {[%clk 00:23:07]} {[%emt
00:01:08]} Nf6 {[%clk 00:23:39]} {[%emt 00:00:18]} 17. e4 {[%clk 00:21:12]}
{[%emt 00:02:05]} dxe4 {[%clk 00:21:57]} {[%emt 00:01:52]} 18. fxe4 {[%clk
00:21:21]} {[%emt 00:00:02]} Bxe5 {[%clk 00:21:23]} {[%emt 00:00:43]} 19. dxe5
{[%clk 00:21:29]} {[%emt 00:00:02]} Qc5+ {[%clk 00:20:53]} {[%emt 00:00:40]} 20.
Kh1 {[%clk 00:20:37]} {[%emt 00:01:03]} Nxe4 {[%clk 00:20:53]} {[%emt
00:00:10]} 21. Bxe4 {[%clk 00:20:42]} {[%emt 00:00:04]} fxe4 {[%clk 00:20:59]}
{[%emt 00:00:04]} 22. Rxf8+ {[%clk 00:20:43]} {[%emt 00:00:10]} Qxf8 {[%clk
00:20:58]} {[%emt 00:00:11]} 23. Rf1 {[%clk 00:20:11]} {[%emt 00:00:42]} Qe7
{[%clk 00:20:52]} {[%emt 00:00:14]} 24. Qxe4 {[%clk 00:19:14]} {[%emt
00:01:08]} c5 {[%clk 00:20:44]} {[%emt 00:00:18]} 25. Kg1 {[%clk 00:17:33]}
{[%emt 00:01:51]} a4 {[%clk 00:19:27]} {[%emt 00:01:28]} 26. bxa4 {[%clk
00:16:57]} {[%emt 00:00:46]} Rxa4 {[%clk 00:17:27]} {[%emt 00:02:10]} 27. Qd3
{[%clk 00:14:51]} {[%emt 00:02:15]} Qd7 {[%clk 00:16:26]} {[%emt 00:01:09]} 28.
Qxd7 {[%clk 00:14:26]} {[%emt 00:00:37]} Bxd7 {[%clk 00:16:35]} {[%emt
00:00:01]} 29. Rc1 {[%clk 00:14:35]} {[%emt 00:00:02]} Bc6 {[%clk 00:15:28]}
{[%emt 00:01:16]} 30. Rc3 {[%clk 00:14:36]} {[%emt 00:00:09]} Kf7 {[%clk
00:15:00]} {[%emt 00:00:38]} 31. Bc1 {[%clk 00:14:38]} {[%emt 00:00:08]} Kg6
{[%clk 00:14:57]} {[%emt 00:00:12]} 32. Kf2 {[%clk 00:08:56]} {[%emt 00:05:53]}
Kf5 {[%clk 00:14:42]} {[%emt 00:00:25]} 33. Bf4 {[%clk 00:08:17]} {[%emt
00:00:50]} g5 {[%clk 00:12:30]} {[%emt 00:02:22]} 34. Be3 {[%clk 00:08:23]}
{[%emt 00:00:04]} b6 {[%clk 00:11:44]} {[%emt 00:00:55]} 35. Ke2 {[%clk
00:07:59]} {[%emt 00:00:33]} Kxe5 {[%clk 00:11:10]} {[%emt 00:00:45]} 36. Bxg5
{[%clk 00:08:07]} {[%emt 00:00:02]} Rxc4 {[%clk 00:10:50]} {[%emt 00:00:30]} 37.
Rxc4 {[%clk 00:06:28]} {[%emt 00:01:49]} Bb5 {[%clk 00:10:58]} {[%emt
00:00:02]} 38. Kd3 {[%clk 00:06:32]} {[%emt 00:00:06]} Kd5 {[%clk 00:10:57]}
{[%emt 00:00:11]} 39. Bd8 {[%clk 00:05:33]} {[%emt 00:01:08]} Bxc4+ {[%clk
00:10:59]} {[%emt 00:00:09]} 40. Kc3 {[%clk 00:05:43]} b5 {[%clk 00:11:07]}
{[%emt 00:00:02]} 41. Bg5 {[%clk 00:04:58]} {[%emt 00:00:54]} Bf1 {[%clk
00:11:03]} {[%emt 00:00:14]} 42. Be3 {[%clk 00:05:07]} {[%emt 00:00:02]} e5
{[%clk 00:10:57]} {[%emt 00:00:17]} 43. Bg1 {[%clk 00:03:44]} {[%emt 00:01:32]}
Bh3 {[%clk 00:09:42]} {[%emt 00:01:25]} 44. Bf2 {[%clk 00:02:22]} {[%emt
00:01:33]} c4 {[%clk 00:09:41]} {[%emt 00:00:11]} 45. Bb6 {[%clk 00:01:51]}
{[%emt 00:00:40]} Bd7 {[%clk 00:09:05]} {[%emt 00:00:46]} 46. h4 {[%clk
00:01:28]} {[%emt 00:00:33]} Bc6 {[%clk 00:08:37]} {[%emt 00:00:38]} 47. Ba7
{[%clk 00:01:23]} {[%emt 00:00:15]} Ke4 {[%clk 00:08:27]} {[%emt 00:00:20]} 48.
Bb8 {[%clk 00:01:32]} {[%emt 00:00:02]} Kf5 {[%clk 00:08:00]} {[%emt 00:00:36]}
49. Bc7 {[%clk 00:00:53]} {[%emt 00:00:50]} Be4 {[%clk 00:07:24]} {[%emt
00:00:45]} 50. Kd2 {[%clk 00:00:24]} {[%emt 00:00:40]} Bb1 {[%clk 00:07:19]}
{[%emt 00:00:14]} 51. Bb8 {[%clk 00:00:14]} {[%emt 00:00:20]} e4 {[%clk
00:07:13]} {[%emt 00:00:16]} 52. Bf4 {[%clk 00:00:14]} {[%emt 00:00:10]} Kg4
{[%clk 00:07:16]} {[%emt 00:00:07]} 53. Be5 {[%clk 00:00:13]} {[%emt 00:00:12]}
Kf3 {[%clk 00:07:16]} {[%emt 00:00:11]} 54. Bf4 {[%clk 00:00:13]} {[%emt
00:00:08]} e3+ {[%clk 00:06:44]} {[%emt 00:00:42]} 55. Ke1 {[%clk 00:00:18]}
{[%emt 00:00:05]} c3 {[%clk 00:06:02]} {[%emt 00:00:52]} 56. Be5 {[%clk
00:00:27]} {[%emt 00:00:01]} c2 {[%clk 00:06:03]} {[%emt 00:00:09]} 57. Bb2
{[%clk 00:00:36]} Ba2 {[%clk 00:05:32]} {[%emt 00:00:40]} 58. Bc1 {[%clk
00:00:44]} {[%emt 00:00:04]} Bc4 {[%clk 00:05:22]} {[%emt 00:00:14]} 59. Bb2
{[%clk 00:00:46]} {[%emt 00:00:14]} Kxg3 {[%clk 00:05:14]} {[%emt 00:00:17]} 60.
Bc1 {[%clk 00:00:56]} Kxh4 {[%clk 00:04:43]} {[%emt 00:00:41]} 61. Bxe3 {[%clk
00:01:05]} Kg3 {[%clk 00:04:28]} {[%emt 00:00:25]} 62. Kd2 {[%clk 00:01:14]}
Bb3 {[%clk 00:04:32]} {[%emt 00:00:06]} 63. Kc3 {[%clk 00:01:24]} {[%emt
00:00:01]} Ba4 {[%clk 00:04:36]} {[%emt 00:00:06]} 64. Kd4 {[%clk 00:01:03]}
{[%emt 00:00:05]} 0-1

[Event "Vastgota Open 2023"]
[Site "Skara stadshotell, Jarnvagsgatan 5, Skara, Sweden"]
[Date "2023.02.19"]
[Round "9.5"]
[White "Cramling, Pia"]
[Black "Silseth, Simon"]
[Result "1-0"]
[TimeControl "15 minutes + 5 seconds per move from move one (Round 1 - 2) / 30 minutes + 10 seconds per move from move one (Round 3 - 9)"]
[WhiteTitle "GM"]
[BlackTitle "FM"]
[WhiteFideId "1700030"]
[BlackFideId "1702440"]
[WhiteElo "2429"]
[BlackElo "2258"]

1. d4 {[%clk 00:30:19]} Nf6 {[%clk 00:30:18]} {[%emt 00:00:03]} 2. Nf3 {[%clk
00:30:28]} e6 {[%clk 00:30:25]} {[%emt 00:00:04]} 3. c4 {[%clk 00:30:37]}
{[%emt 00:00:01]} d5 {[%clk 00:30:27]} {[%emt 00:00:08]} 4. g3 {[%clk
00:29:56]} {[%emt 00:00:51]} Be7 {[%clk 00:29:24]} {[%emt 00:01:13]} 5. Bg2
{[%clk 00:30:04]} {[%emt 00:00:02]} O-O {[%clk 00:29:22]} {[%emt 00:00:12]} 6.
O-O {[%clk 00:30:11]} {[%emt 00:00:02]} dxc4 {[%clk 00:29:23]} {[%emt
00:00:10]} 7. Qc2 {[%clk 00:30:05]} {[%emt 00:00:15]} a6 {[%clk 00:29:09]}
{[%emt 00:00:25]} 8. a4 {[%clk 00:29:54]} {[%emt 00:00:20]} c5 {[%clk
00:27:36]} {[%emt 00:01:44]} 9. dxc5 {[%clk 00:28:45]} {[%emt 00:01:19]} Qc7
{[%clk 00:27:10]} {[%emt 00:00:35]} 10. Qxc4 {[%clk 00:26:25]} {[%emt
00:02:30]} Qxc5 {[%clk 00:27:14]} {[%emt 00:00:06]} 11. Na3 {[%clk 00:26:19]}
{[%emt 00:00:17]} Nc6 {[%clk 00:26:30]} {[%emt 00:00:54]} 12. Qxc5 {[%clk
00:24:29]} {[%emt 00:02:00]} Bxc5 {[%clk 00:26:38]} {[%emt 00:00:01]} 13. Nc4
{[%clk 00:24:12]} {[%emt 00:00:27]} Nd5 {[%clk 00:25:33]} {[%emt 00:01:16]} 14.
Bd2 {[%clk 00:23:45]} {[%emt 00:00:36]} b6 {[%clk 00:25:25]} {[%emt 00:00:19]}
15. Rfc1 {[%clk 00:23:01]} {[%emt 00:00:53]} Bb7 {[%clk 00:24:35]} {[%emt
00:01:01]} 16. a5 {[%clk 00:22:00]} {[%emt 00:01:11]} b5 {[%clk 00:23:28]}
{[%emt 00:01:16]} 17. Nce5 {[%clk 00:21:24]} {[%emt 00:00:46]} Nxe5 {[%clk
00:21:52]} {[%emt 00:01:48]} 18. Nxe5 {[%clk 00:21:31]} {[%emt 00:00:02]} Bd4
{[%clk 00:21:13]} {[%emt 00:00:49]} 19. Nd3 {[%clk 00:21:40]} Rac8 {[%clk
00:21:09]} {[%emt 00:00:13]} 20. e3 {[%clk 00:21:36]} {[%emt 00:00:14]} Ba7
{[%clk 00:16:35]} {[%emt 00:04:45]} 21. Nb4 {[%clk 00:20:20]} {[%emt 00:01:25]}
Rfd8 {[%clk 00:13:19]} {[%emt 00:03:27]} 22. Rxc8 {[%clk 00:17:16]} {[%emt
00:03:14]} Rxc8 {[%clk 00:13:22]} {[%emt 00:00:07]} 23. Rd1 {[%clk 00:17:03]}
{[%emt 00:00:21]} f6 {[%clk 00:08:45]} {[%emt 00:04:49]} 24. Nxd5 {[%clk
00:16:09]} {[%emt 00:01:03]} Bxd5 {[%clk 00:08:20]} {[%emt 00:00:35]} 25. Bc3
{[%clk 00:16:11]} {[%emt 00:00:09]} Bxg2 {[%clk 00:07:16]} {[%emt 00:01:14]} 26.
Kxg2 {[%clk 00:16:18]} {[%emt 00:00:02]} Bc5 {[%clk 00:07:18]} {[%emt
00:00:09]} 27. Rd7 {[%clk 00:16:02]} {[%emt 00:00:24]} e5 {[%clk 00:06:51]}
{[%emt 00:00:39]} 28. Kf3 {[%clk 00:14:58]} {[%emt 00:01:13]} Bf8 {[%clk
00:06:22]} {[%emt 00:00:40]} 29. Rb7 {[%clk 00:14:26]} {[%emt 00:00:42]} Rc4
{[%clk 00:05:37]} {[%emt 00:00:55]} 30. Rb6 {[%clk 00:13:19]} {[%emt 00:01:16]}
b4 {[%clk 00:05:40]} {[%emt 00:00:08]} 31. Be1 {[%clk 00:10:51]} {[%emt
00:02:38]} Kf7 {[%clk 00:05:39]} {[%emt 00:00:11]} 32. b3 {[%clk 00:09:23]}
{[%emt 00:01:37]} Rc1 {[%clk 00:05:26]} {[%emt 00:00:23]} 33. Bxb4 {[%clk
00:09:26]} {[%emt 00:00:08]} Bxb4 {[%clk 00:05:29]} {[%emt 00:00:07]} 34. Rxb4
{[%clk 00:09:35]} {[%emt 00:00:01]} Ra1 {[%clk 00:05:34]} {[%emt 00:00:04]} 35.
Rb7+ {[%clk 00:09:41]} {[%emt 00:00:04]} Kg6 {[%clk 00:05:40]} {[%emt
00:00:04]} 36. b4 {[%clk 00:09:47]} {[%emt 00:00:05]} Ra2 {[%clk 00:05:38]}
{[%emt 00:00:12]} 37. g4 {[%clk 00:09:11]} {[%emt 00:00:45]} Rb2 {[%emt
00:02:53]} 38. h4 {[%clk 00:08:09]} h5 {[%clk 00:03:55]} {[%emt 00:00:22]} 39.
g5 {[%clk 00:07:28]} fxg5 {[%clk 00:03:51]} {[%emt 00:01:06]} 40. Rb6+ {[%clk
00:07:08]} Kh7 {[%clk 00:03:18]} {[%emt 00:01:13]} 41. hxg5 {[%clk 00:07:15]}
{[%emt 00:00:02]} Rb1 {[%clk 00:03:04]} {[%emt 00:00:25]} 42. Kg2 {[%clk
00:06:37]} {[%emt 00:00:47]} g6 {[%clk 00:02:47]} {[%emt 00:00:28]} 43. b5
{[%clk 00:05:53]} {[%emt 00:00:54]} 1-0

[Event "Vastgota Open 2023"]
[Site "Skara stadshotell, Jarnvagsgatan 5, Skara, Sweden"]
[Date "2023.02.19"]
[Round "9.6"]
[White "Ronneland, Daniel"]
[Black "Kucuksari, Kaan"]
[Result "1-0"]
[TimeControl "15 minutes + 5 seconds per move from move one (Round 1 - 2) / 30 minutes + 10 seconds per move from move one (Round 3 - 9)"]
[BlackTitle "IM"]
[WhiteFideId "1702130"]
[BlackFideId "6380166"]
[WhiteElo "2188"]
[BlackElo "2380"]

1. e4 {[%clk 00:30:18]} c5 {[%clk 00:30:18]} {[%emt 00:00:03]} 2. Nf3 {[%clk
00:30:21]} {[%emt 00:00:06]} Nc6 {[%clk 00:30:25]} {[%emt 00:00:04]} 3. d4
{[%clk 00:30:27]} {[%emt 00:00:05]} cxd4 {[%clk 00:30:33]} {[%emt 00:00:02]} 4.
Nxd4 {[%clk 00:30:24]} {[%emt 00:00:13]} Nf6 {[%clk 00:30:41]} {[%emt
00:00:02]} 5. Nc3 {[%clk 00:30:25]} {[%emt 00:00:09]} e5 {[%clk 00:30:46]}
{[%emt 00:00:05]} 6. Ndb5 {[%clk 00:30:20]} {[%emt 00:00:15]} d6 {[%clk
00:30:54]} {[%emt 00:00:01]} 7. Bg5 {[%clk 00:30:10]} {[%emt 00:00:20]} a6
{[%clk 00:31:03]} {[%emt 00:00:02]} 8. Na3 {[%clk 00:30:14]} {[%emt 00:00:06]}
b5 {[%clk 00:31:11]} {[%emt 00:00:01]} 9. Bxf6 {[%clk 00:29:09]} {[%emt
00:01:15]} gxf6 {[%clk 00:31:19]} {[%emt 00:00:02]} 10. Nd5 {[%clk 00:29:11]}
{[%emt 00:00:08]} Bg7 {[%clk 00:31:18]} {[%emt 00:00:12]} 11. Bd3 {[%clk
00:26:28]} {[%emt 00:02:52]} O-O {[%clk 00:31:24]} {[%emt 00:00:04]} 12. Qh5
{[%clk 00:23:11]} {[%emt 00:03:26]} Ne7 {[%clk 00:31:30]} {[%emt 00:00:04]} 13.
O-O {[%clk 00:22:35]} {[%emt 00:00:46]} f5 {[%clk 00:31:25]} {[%emt 00:00:16]}
14. Nxe7+ {[%clk 00:20:02]} {[%emt 00:02:43]} Qxe7 {[%clk 00:31:34]} {[%emt
00:00:02]} 15. c4 {[%clk 00:18:01]} {[%emt 00:02:10]} Kh8 {[%clk 00:27:56]}
{[%emt 00:03:49]} 16. exf5 {[%clk 00:16:43]} {[%emt 00:01:27]} Bf6 {[%clk
00:28:04]} {[%emt 00:00:02]} 17. Rae1 {[%clk 00:15:59]} {[%emt 00:00:51]} Bb7
{[%clk 00:26:53]} {[%emt 00:01:24]} 18. Be4 {[%clk 00:13:34]} {[%emt 00:02:35]}
Rg8 {[%clk 00:27:01]} {[%emt 00:00:02]} 19. Qf3 {[%clk 00:12:27]} {[%emt
00:01:14]} Rab8 {[%clk 00:27:09]} {[%emt 00:00:06]} 20. Bxb7 {[%clk 00:11:13]}
{[%emt 00:01:24]} Qxb7 {[%clk 00:27:10]} {[%emt 00:00:09]} 21. Qxb7 {[%clk
00:11:03]} {[%emt 00:00:20]} Rxb7 {[%clk 00:27:18]} {[%emt 00:00:02]} 22. cxb5
{[%clk 00:11:10]} {[%emt 00:00:02]} axb5 {[%clk 00:27:26]} {[%emt 00:00:02]} 23.
Rd1 {[%clk 00:10:47]} {[%emt 00:00:31]} e4 {[%clk 00:26:54]} {[%emt 00:00:45]}
24. Rd5 {[%clk 00:10:13]} {[%emt 00:00:42]} Rgb8 {[%clk 00:26:55]} {[%emt
00:00:10]} 25. b3 {[%clk 00:08:09]} {[%emt 00:02:14]} Bb2 {[%clk 00:27:03]}
{[%emt 00:00:02]} 26. Nc2 {[%clk 00:08:06]} {[%emt 00:00:13]} Be5 {[%clk
00:27:12]} {[%emt 00:00:01]} 27. Nd4 {[%clk 00:07:00]} {[%emt 00:01:16]} Rc8
{[%clk 00:26:24]} {[%emt 00:00:59]} 28. Nxb5 {[%clk 00:06:33]} {[%emt
00:00:36]} Rb6 {[%clk 00:26:24]} {[%emt 00:00:10]} 29. Rfd1 {[%clk 00:05:24]}
{[%emt 00:01:18]} Rc2 {[%clk 00:26:31]} {[%emt 00:00:04]} 30. a4 {[%clk
00:05:14]} {[%emt 00:00:20]} Rb2 {[%clk 00:26:40]} {[%emt 00:00:02]} 31. g3
{[%clk 00:04:47]} {[%emt 00:00:36]} Rc6 {[%clk 00:24:59]} {[%emt 00:01:52]} 32.
R5d2 {[%clk 00:02:38]} {[%emt 00:02:16]} Rxd2 {[%clk 00:20:44]} {[%emt
00:04:27]} 33. Rxd2 {[%clk 00:02:46]} {[%emt 00:00:02]} Kg7 {[%clk 00:20:53]}
{[%emt 00:00:01]} 34. a5 {[%clk 00:02:11]} {[%emt 00:00:45]} Kf6 {[%clk
00:17:44]} {[%emt 00:03:19]} 35. f4 {[%clk 00:01:59]} {[%emt 00:00:21]} exf3
{[%clk 00:17:39]} {[%emt 00:00:16]} 36. Kf2 {[%clk 00:02:04]} {[%emt 00:00:04]}
Kxf5 {[%clk 00:16:53]} {[%emt 00:00:57]} 37. Nd4+ {[%clk 00:02:08]} {[%emt
00:00:07]} Bxd4+ {[%clk 00:16:54]} {[%emt 00:00:09]} 38. Rxd4 {[%clk 00:02:16]}
{[%emt 00:00:01]} Ke5 {[%clk 00:17:02]} {[%emt 00:00:02]} 39. Ra4 {[%clk
00:02:15]} {[%emt 00:00:09]} Rc8 {[%clk 00:16:40]} {[%emt 00:00:34]} 40. a6
{[%clk 00:02:18]} {[%emt 00:00:07]} Ra8 {[%clk 00:16:49]} {[%emt 00:00:01]} 41.
Kxf3 {[%clk 00:02:19]} {[%emt 00:00:10]} Kd5 {[%clk 00:16:50]} {[%emt
00:00:08]} 42. a7 {[%clk 00:02:22]} {[%emt 00:00:07]} Kc5 {[%clk 00:16:59]}
{[%emt 00:00:02]} 43. Ke4 {[%clk 00:02:16]} {[%emt 00:00:14]} d5+ {[%clk
00:16:41]} {[%emt 00:00:29]} 44. Kd3 {[%clk 00:02:24]} {[%emt 00:00:02]} d4
{[%clk 00:16:20]} {[%emt 00:00:30]} 45. g4 {[%clk 00:02:18]} {[%emt 00:00:17]}
Kc6 {[%clk 00:16:06]} {[%emt 00:00:24]} 46. Kxd4 {[%clk 00:02:22]} {[%emt
00:00:06]} Kb7 {[%clk 00:16:16]} {[%emt 00:00:01]} 47. Ke5 {[%clk 00:02:28]}
{[%emt 00:00:04]} Re8+ {[%clk 00:16:24]} {[%emt 00:00:02]} 48. Kf6 {[%clk
00:02:31]} {[%emt 00:00:07]} Ka8 {[%clk 00:16:32]} {[%emt 00:00:01]} 49. Kxf7
{[%clk 00:02:31]} {[%emt 00:00:10]} Re3 {[%clk 00:16:39]} {[%emt 00:00:02]} 50.
h4 {[%clk 00:02:30]} {[%emt 00:00:12]} Rxb3 {[%clk 00:16:42]} {[%emt 00:00:07]}
51. g5 {[%clk 00:02:30]} {[%emt 00:00:11]} Rb7+ {[%clk 00:16:17]} {[%emt
00:00:35]} 52. Kg8 {[%clk 00:02:38]} {[%emt 00:00:01]} Rc7 {[%clk 00:16:25]}
{[%emt 00:00:02]} 53. h5 {[%clk 00:02:41]} {[%emt 00:00:07]} Rc5 {[%clk
00:16:33]} {[%emt 00:00:02]} 54. g6 {[%clk 00:02:36]} {[%emt 00:00:15]} hxg6
{[%clk 00:16:27]} {[%emt 00:00:16]} 55. hxg6 {[%clk 00:02:41]} {[%emt
00:00:05]} Rc8 {[%clk 00:16:28]} {[%emt 00:00:09]} 56. Kh7 {[%clk 00:02:47]}
{[%emt 00:00:03]} Rc1 {[%clk 00:16:36]} {[%emt 00:00:03]} 57. Rh4 {[%clk
00:02:42]} {[%emt 00:00:15]} 1-0